bitfinex-derivatives/quotes_SOLF0:USTF0_20250603
["timestamp","ask_amount","ask_price","bid_price","bid_amount"]
[1748910928114,35.34041357,158.66,158.63,0.04333031]
[1748910928317,35.345259,158.66,158.63,0.04299865]
[1748910928504,35.345259,158.66,158.63,6.34329865]
[1748910928810,35.345259,158.66,158.63,0.04299865]
[1748910929197,0.045259,158.66,158.63,0.04299865]
[1748910930109,0.045259,158.66,158.65,6.2996]
[1748910930809,35.3,158.7,158.65,10.91361528]
[1748910931012,35.3,158.7,158.63,0.04299865]
[1748910931013,46.21361528,158.7,158.63,0.04299865]
[1748910931312,10.91361528,158.68,158.63,0.04299865]
[1748910931508,10.91361528,158.66,158.63,0.04299865]
[1748910931711,10.91361528,158.64,158.53,35.3]
[1748910931921,10.91361528,158.62,158.53,35.3]
[1748910932211,35.3,158.61,158.53,35.3]
[1748910932406,35.3,158.61,158.56,6.3031]
[1748910932712,10.96139511,158.6,158.57,0.04714035]
[1748910932915,17.26319511,158.6,158.57,0.04714035]
[1748910933318,10.96139511,158.6,158.57,0.04714035]
[1748910934518,0.04777983,158.6,158.57,0.04714035]
[1748910935319,6.3023,158.58,158.57,0.04714035]
[1748910936110,6.3032,158.56,158.52,6.3046]
[1748910936713,6.3036,158.55,158.51,6.305]
[1748910937118,6.34812159,158.55,158.51,6.35000342]
[1748910937313,0.04452159,158.55,158.51,6.35000342]
[1748910937514,0.04452159,158.55,158.52,6.3046]
[1748910937911,0.04452159,158.55,158.51,0.04500342]
[1748910938113,10.95813687,158.55,158.51,0.04500342]
[1748910939017,0.04452159,158.55,158.51,0.04500342]
[1748910939218,0.04452159,158.55,158.51,10.9586187]
[1748910939815,0.04452159,158.55,158.54,6.3039]
[1748910943217,0.04452159,158.55,158.53,6.3042]
[1748910943622,0.04452159,158.55,158.51,0.04500342]
[1748910943623,0.04452159,158.55,158.51,6.34980342]
[1748910943926,0.04452159,158.55,158.51,0.04500342]
[1748910945022,0.04452159,158.55,158.52,6.3045]
[1748910945220,0.04452159,158.55,158.51,0.04500342]
[1748910945623,10.95813687,158.55,158.51,0.04500342]
[1748910946119,10.95813687,158.55,158.51,6.35000342]
[1748910946317,10.95813687,158.55,158.51,0.04500342]
[1748910946519,0.04452159,158.55,158.51,0.04500342]
[1748910946721,10.91361528,158.53,158.51,0.04500342]
[1748910947325,6.3047,158.52,158.51,0.04500342]
[1748910947521,35.32,158.52,158.46,2.0172]
[1748910948628,0.04208359,158.51,158.47,0.04497745]
[1748910948822,0.04208359,158.51,158.5,6.3055]
[1748910949020,35.34,158.57,158.48,46.25361528]
[1748910949221,35.34,158.61,158.52,10.91361528]
[1748910949723,35.34,158.61,158.49,4.1604]
[1748910949724,46.25361528,158.61,158.51,10.91361528]
[1748910950026,0.04768903,158.58,158.54,0.04263042]
[1748910951024,0.04768903,158.58,158.56,6.3031]
[1748910951419,0.04768903,158.58,158.54,0.04263042]
[1748910952325,0.04768903,158.58,158.55,6.3032]
[1748910953224,0.04768903,158.58,158.54,0.04263042]
[1748910953923,0.04768903,158.58,158.54,6.34643042]
[1748910954325,0.04768903,158.58,158.54,0.04263042]
[1748910954728,35.32,158.57,158.54,0.04263042]
[1748910955222,10.91361528,158.56,158.45,35.32]
[1748910955428,10.91361528,158.56,158.48,6.3062]
[1748910955429,6.305,158.52,158.48,6.3062]
[1748910955624,35.32,158.52,158.48,6.3062]
[1748910956220,35.36448085,158.52,158.48,0.04059204]
[1748910957223,0.04448085,158.52,158.48,0.04059204]
[1748910957530,0.04448085,158.52,158.48,10.95420732]
[1748910957725,0.04448085,158.52,158.51,6.3051]
[1748910958038,35.32,158.59,158.5,46.23361528]
[1748910958227,35.32,158.59,158.52,10.91361528]
[1748910958833,41.6221,158.59,158.56,6.3031]
[1748910959034,35.3626976,158.59,158.56,0.04029534]
[1748910959236,6.3027,158.58,158.56,0.04029534]
[1748910959433,35.3626976,158.59,158.56,0.04029534]
[1748910959839,6.3027,158.57,158.56,0.04029534]
[1748910960825,6.3025,158.58,158.56,0.04029534]
[1748910961933,6.3027,158.57,158.56,0.04029534]
[1748910962141,10.91361528,158.57,158.49,2.0699]
[1748910962538,6.3037,158.55,158.51,6.3048]
[1748910962735,41.6237,158.55,158.51,6.3048]
[1748910962932,35.32,158.55,158.49,2.0699]
[1748910963136,0.04512286,158.54,158.5,0.04215384]
[1748910963634,6.3048,158.52,158.5,0.04215384]
[1748910963828,0.04512286,158.54,158.5,6.34765384]
[1748910964233,6.3046,158.53,158.5,0.04215384]
[1748910964827,6.34912286,158.54,158.5,0.04215384]
[1748910965033,0.04512286,158.54,158.5,0.04215384]
[1748910965430,0.04512286,158.54,158.5,6.34755384]
[1748910966236,0.04512286,158.54,158.51,6.3051]
[1748910966838,6.3044,158.53,158.5,0.04215384]
[1748910967139,0.04512286,158.54,158.5,0.04215384]
[1748910967738,6.3046,158.53,158.5,0.04215384]
[1748910968038,0.04512286,158.54,158.5,0.04215384]
[1748910968437,6.3044,158.53,158.5,0.04215384]
[1748910969841,6.3051,158.51,158.5,0.04215384]
[1748910970746,0.04512286,158.54,158.5,0.04215384]
[1748910971043,0.04512286,158.54,158.51,6.3048]
[1748910971540,0.04512286,158.54,158.5,0.04215384]
[1748910971938,6.34932286,158.54,158.5,0.04215384]
[1748910972346,0.04512286,158.54,158.5,0.04215384]
[1748910972647,6.3051,158.52,158.5,0.04215384]
[1748910972843,0.04512286,158.54,158.5,0.04215384]
[1748910974149,0.04512286,158.54,158.52,6.3044]
[1748910974945,0.04512286,158.54,158.5,0.04215384]
[1748910975743,6.3044,158.53,158.5,0.04215384]
[1748910976049,0.04512286,158.54,158.5,0.04215384]
[1748910976553,6.3046,158.53,158.5,6.34755384]
[1748910977149,0.04512286,158.54,158.5,0.04215384]
[1748910978251,6.3044,158.53,158.5,0.04215384]
[1748910978750,6.3044,158.53,158.5,6.34765384]
[1748910979142,6.34912286,158.54,158.5,0.04215384]
[1748910979348,2.286e-05,158.54,158.53,6.3043]
[1748910979541,7.87092467,158.59,158.53,4.3217]
[1748910979751,47.09699149,158.65,158.57,10.91361528]
[1748910979752,13.75854968,158.63,158.57,10.91361528]
[1748910980051,35.32,158.65,158.53,4.3217]
[1748910980245,35.32,158.65,158.54,46.23361528]
[1748910980452,0.04701753,158.61,158.58,0.04757762]
[1748910980856,0.04701753,158.61,158.58,6.34977762]
[1748910981349,0.04701753,158.61,158.58,0.04757762]
[1748910981548,0.04701753,158.61,158.58,10.9611929]
[1748910982054,0.04701753,158.61,158.6,6.3015]
[1748910983554,19.01,158.6,158.45,10.67639306]
[1748910983856,7.87092467,158.54,158.43,10.83879403]
[1748910984056,35.3,158.53,158.43,10.83879403]
[1748910984348,10.85453005,158.51,158.41,46.15453005]
[1748910984548,0.04310005,158.48,158.44,6.35032031]
[1748910984759,0.04310005,158.48,158.44,0.04272031]
[1748910986549,6.3073,158.46,158.44,0.04272031]
[1748910986749,10.85487486,158.47,158.44,0.04272031]
[1748910986952,0.04310005,158.48,158.39,2.0885]
[1748910986953,46.17487486,158.45,158.39,2.0885]
[1748910987252,10.85487486,158.43,158.39,2.0885]
[1748910987748,10.85487486,158.43,158.34,35.32]
[1748910987954,0.0461318,158.4,158.37,0.04270277]
[1748910989150,0.0461318,158.4,158.37,10.89757763]
[1748910989455,35.32,158.45,158.37,0.04270277]
[1748910989653,46.17487486,158.45,158.37,0.04270277]
[1748910990159,6.31,158.39,158.37,0.04270277]
[1748910990360,0.04685143,158.4,158.37,0.04270277]
[1748910990861,10.85487486,158.39,158.33,2.1734]
[1748910991357,6.3116,158.35,158.33,2.1734]
[1748910991559,35.32,158.41,158.33,2.1734]
[1748910991754,10.85487486,158.4,158.33,2.1734]
[1748910991951,0.0410915,158.38,158.35,0.04042437]
[1748910995963,6.3513915,158.38,158.35,0.04042437]
[1748910996259,0.0410915,158.38,158.35,0.04042437]
[1748910996459,0.0410915,158.38,158.35,6.35182437]
[1748910996661,0.0410915,158.38,158.35,0.04042437]
[1748910997262,6.3513915,158.38,158.35,0.04042437]
[1748910998470,0.0410915,158.38,158.35,6.35182437]
[1748910998660,0.0410915,158.38,158.35,0.04042437]
[1748910999170,0.0410915,158.38,158.35,6.35192437]
[1748910999458,10.89596636,158.38,158.35,0.04042437]
[1748910999659,35.34,158.37,158.29,2.1815]
[1748911000758,0.04280294,158.35,158.31,0.04236564]
[1748911001260,0.04280294,158.35,158.32,6.3124]
[1748911001564,6.3126,158.33,158.31,0.04236564]
[1748911001955,10.85487486,158.34,158.31,0.04236564]
[1748911002157,6.3127,158.32,158.31,0.04236564]
[1748911003565,10.85487486,158.34,158.31,0.04236564]
[1748911004061,17.16677486,158.34,158.31,0.04236564]
[1748911004260,10.85487486,158.34,158.31,0.04236564]
[1748911004661,6.3126,158.33,158.31,0.04236564]
[1748911005061,10.85487486,158.34,158.31,0.04236564]
[1748911005365,17.16707486,158.34,158.31,0.04236564]
[1748911006069,6.3123,158.33,158.31,0.04236564]
[1748911006460,0.04280294,158.35,158.32,6.3127]
[1748911006761,0.04280294,158.35,158.31,0.04236564]
[1748911007967,10.85487486,158.34,158.31,0.04236564]
[1748911008168,6.3123,158.33,158.31,0.04236564]
[1748911008558,10.8976778,158.35,158.31,0.04236564]
[1748911008766,6.3123,158.33,158.31,0.04236564]
[1748911009864,17.2094778,158.35,158.31,0.04236564]
[1748911010772,17.2094778,158.35,158.31,6.35516564]
[1748911011069,6.312,158.34,158.31,6.35516564]
[1748911012467,6.35440294,158.35,158.31,6.35516564]
[1748911013271,6.35440294,158.35,158.32,6.3124]
[1748911013973,6.35440294,158.35,158.31,6.35536564]
[1748911014376,6.3119,158.34,158.31,6.35536564]
[1748911016879,6.3125,158.33,158.31,0.04236564]
[1748911017178,0.04280294,158.35,158.31,0.04236564]
[1748911017179,10.85487486,158.34,158.31,0.04236564]
[1748911017580,6.3126,158.33,158.31,0.04236564]
[1748911018180,6.3127,158.32,158.31,0.04236564]
[1748911018582,10.8976778,158.35,158.31,0.04236564]
[1748911018877,6.3122,158.34,158.31,0.04236564]
[1748911019779,6.3123,158.33,158.31,0.04236564]
[1748911020483,6.3123,158.33,158.31,6.35546564]
[1748911020684,6.3121,158.34,158.31,6.35546564]
[1748911020985,0.04280294,158.35,158.32,6.3127]
[1748911021184,6.35460294,158.35,158.31,0.04236564]
[1748911022376,0.04280294,158.35,158.31,0.04236564]
[1748911022575,0.04280294,158.35,158.31,4.38486564]
[1748911022781,0.04280294,158.35,158.31,15.2397405]
[1748911022983,0.04280294,158.35,158.31,4.38486564]
[1748911023182,0.04280294,158.35,158.31,2.22686564]
[1748911023481,0.04280294,158.35,158.31,8.53976564]
[1748911023678,0.04280294,158.35,158.31,2.22686564]
[1748911023878,6.35460294,158.35,158.32,6.3126]
[1748911024084,0.04280294,158.35,158.31,2.22686564]
[1748911024481,6.3122,158.34,158.31,2.22686564]
[1748911024784,0.04280294,158.35,158.31,0.04236564]
[1748911025577,6.3121,158.34,158.31,0.04236564]
[1748911025775,0.04280294,158.35,158.31,0.04236564]
[1748911026186,0.04280294,158.35,158.32,6.3123]
[1748911027386,0.04280294,158.35,158.31,0.04236564]
[1748911028089,0.04280294,158.35,158.31,2.05736564]
[1748911028485,0.04280294,158.35,158.34,6.3119]
[1748911029683,0.04280294,158.35,158.33,6.3121]
[1748911029885,0.04280294,158.35,158.31,2.05736564]
[1748911030592,0.04280294,158.35,158.34,6.3119]
[1748911030989,7.87092467,158.42,158.32,10.85487486]
[1748911031289,5.05936993,158.41,158.31,37.335]
[1748911031494,6.3079,158.44,158.41,6.309]
[1748911031892,5.062564,158.43,158.41,6.309]
[1748911032089,5.062564,158.42,158.41,6.3091]
[1748911032293,12.93356013,158.48,158.4,46.21783399]
[1748911032489,5.062857,158.47,158.42,10.85487486]
[1748911032688,5.06263546,158.48,158.42,10.85487486]
[1748911033397,0.04632097,158.47,158.44,6.3078]
[1748911033689,0.04632097,158.47,158.43,0.04636854]
[1748911033991,6.3072,158.46,158.43,6.35466854]
[1748911034196,0.04632097,158.47,158.43,0.04636854]
[1748911034690,6.3072,158.46,158.43,0.04636854]
[1748911034895,0.04632097,158.47,158.43,0.04636854]
[1748911035092,10.85487486,158.45,158.38,2.2244]
[1748911035292,6.3092,158.41,158.38,8.5347]
[1748911035994,35.32,158.45,158.38,2.2244]
[1748911036185,12.93356013,158.48,158.39,12.91527486]
[1748911036186,1.791e-05,158.41,158.39,12.91527486]
[1748911036385,5.06263546,158.48,158.39,12.91527486]
[1748911036593,5.06263546,158.48,158.44,10.85487486]
[1748911036793,1.71343546,158.48,158.45,2.0447]
[1748911037292,1.75321803,158.48,158.47,6.3067]
[1748911038192,1.75321803,158.48,158.46,6.3069]
[1748911038591,1.75321803,158.48,158.45,4.1534931]
[1748911038785,1.75321803,158.48,158.47,6.3067]
[1748911039690,1.75321803,158.48,158.45,4.1534931]
[1748911039994,1.75321803,158.48,158.45,15.00836796]
[1748911040397,1.75321803,158.48,158.47,6.3067]
[1748911040590,1.75321803,158.48,158.45,4.1534931]
[1748911040996,1.75321803,158.48,158.47,6.3067]
[1748911042109,35.32,158.54,158.45,15.00836796]
[1748911042399,10.85487486,158.56,158.47,10.85487486]
[1748911042597,10.85487486,158.56,158.45,4.1534931]
[1748911042598,35.3,158.58,158.49,10.85487486]
[1748911043301,0.04307947,158.55,158.52,0.04771893]
[1748911044401,0.04307947,158.55,158.53,6.304]
[1748911045004,0.04307947,158.55,158.52,0.04771893]
[1748911046097,0.04307947,158.55,158.52,6.35231893]
[1748911046999,0.04307947,158.55,158.53,6.3043]
[1748911047194,0.04307947,158.55,158.52,0.04771893]
[1748911047502,0.04307947,158.55,158.53,6.3043]
[1748911047898,0.04307947,158.55,158.52,0.04771893]
[1748911048206,154.67199084,158.61,158.53,10.85487486]
[1748911048207,35.26,158.61,158.53,10.85487486]
[1748911048402,555.95487486,158.63,158.54,4.2941]
[1748911048704,6.3008,158.62,158.58,6.302]
[1748911048901,555.95487486,158.63,158.54,4.2941]
[1748911049094,0.04372612,158.6,158.57,0.0464905]
[1748911049293,10.85487486,158.59,158.49,35.26]
[1748911049501,10.85487486,158.57,158.48,35.26]
[1748911049698,6.3038,158.55,158.51,6.3048]
[1748911050405,6.34350789,158.55,158.51,6.34510733]
[1748911050610,6.3039,158.54,158.51,6.34510733]
[1748911050797,0.03970789,158.55,158.52,6.3047]
[1748911051603,6.34330789,158.55,158.51,6.34530733]
[1748911054099,6.304,158.54,158.51,0.04030733]
[1748911054303,10.85487486,158.54,158.51,0.04030733]
[1748911055207,0.03970789,158.55,158.51,0.04030733]
[1748911055701,0.03970789,158.55,158.52,6.3044]
[1748911055895,0.03970789,158.55,158.51,0.04030733]
[1748911056406,0.03970789,158.55,158.52,6.3046]
[1748911057201,0.03970789,158.55,158.51,0.04030733]
[1748911057807,0.03970789,158.55,158.52,6.3046]
[1748911058300,0.03970789,158.55,158.51,0.04030733]
[1748911058704,10.85487486,158.54,158.51,0.04030733]
[1748911059498,35.27970789,158.55,158.52,6.3046]
[1748911059499,0.03970789,158.55,158.52,6.3046]
[1748911059705,0.03970789,158.55,158.51,0.04030733]
[1748911060103,10.89458275,158.55,158.51,0.04030733]
[1748911060311,10.85487486,158.53,158.51,0.04030733]
[1748911060903,35.24,158.54,158.51,0.04030733]
[1748911061901,35.24,158.54,158.52,6.3045]
[1748911062215,35.24,158.54,158.51,0.04030733]
[1748911062508,35.24,158.54,158.51,6.34510733]
[1748911062711,35.24,158.54,158.51,0.04030733]
[1748911064314,35.24,158.54,158.51,6.34510733]
[1748911065012,41.544,158.54,158.51,6.34510733]
[1748911065401,10.85487486,158.53,158.51,0.04030733]
[1748911066311,10.85487486,158.53,158.51,6.34530733]
[1748911067312,46.09487486,158.54,158.52,6.3047]
[1748911067513,46.09487486,158.54,158.51,0.04030733]
[1748911068615,10.85487486,158.52,158.51,0.04030733]
[1748911069611,10.85487486,158.52,158.44,2.1688]
[1748911069812,10.85487486,158.48,158.4,35.24]
[1748911070019,39.1671,158.54,158.39,39.5136]
[1748911070020,10.85487486,158.46,158.39,39.5136]
[1748911070608,0.04022541,158.44,158.43,6.3083]
[1748911071214,35.24,158.5,158.41,0.04539611]
[1748911071421,35.24,158.5,158.41,10.85487486]
[1748911072221,0.04530578,158.47,158.44,0.04011345]
[1748911072820,0.04530578,158.47,158.45,6.3074]
[1748911074122,0.04530578,158.47,158.44,0.04011345]
[1748911074325,10.90018064,158.47,158.44,0.04011345]
[1748911074821,41.5074,158.46,158.44,0.04011345]
[1748911075519,35.2,158.46,158.44,0.04011345]
[1748911078025,0.04530578,158.47,158.44,0.04011345]
[1748911078426,0.04530578,158.47,158.45,6.3073]
[1748911078616,0.04530578,158.47,158.44,0.04011345]
[1748911079422,7.37348327,158.47,158.44,0.04011345]
[1748911079726,0.04530578,158.47,158.44,0.04011345]
[1748911079911,13.63537749,158.46,158.44,0.04011345]
[1748911080520,6.3072,158.46,158.44,0.04011345]
[1748911080723,13.63537749,158.46,158.44,0.04011345]
[1748911080921,6.3075,158.45,158.44,0.04011345]
[1748911081122,7.32817749,158.46,158.44,0.04011345]
[1748911081621,13.63547749,158.46,158.44,0.04011345]
[1748911081828,7.32817749,158.46,158.44,0.04011345]
[1748911082226,13.63527749,158.46,158.44,0.04011345]
[1748911082419,7.32817749,158.46,158.44,0.04011345]
[1748911082722,0.04530578,158.47,158.44,0.04011345]
[1748911083119,7.32817749,158.46,158.44,0.04011345]
[1748911083320,13.63557749,158.46,158.44,0.04011345]
[1748911083732,7.32817749,158.46,158.44,0.04011345]
[1748911084024,13.63527749,158.46,158.44,0.04011345]
[1748911084629,7.32817749,158.46,158.37,2.0497]
[1748911084929,7.32817749,158.43,158.37,2.0497]
[1748911085828,0.04042573,158.42,158.38,0.0455267]
[1748911086024,0.04042573,158.42,158.39,6.3096]
[1748911086234,7.32817749,158.41,158.38,0.0455267]
[1748911086531,13.63747749,158.41,158.38,0.0455267]
[1748911086724,7.32817749,158.41,158.38,0.0455267]
[1748911087325,6.3098,158.4,158.38,0.0455267]
[1748911087936,13.63737749,158.41,158.38,0.0455267]
[1748911088537,6.3095,158.4,158.38,0.0455267]
[1748911089033,7.32817749,158.41,158.38,0.0455267]
[1748911089346,35.22,158.4,158.38,0.0455267]
[1748911089931,7.32817749,158.39,158.38,0.0455267]
[1748911090131,35.22,158.4,158.38,0.0455267]
[1748911090333,7.32817749,158.39,158.38,0.0455267]
[1748911090824,13.63807749,158.39,158.38,0.0455267]
[1748911091837,6.3099,158.39,158.38,0.0455267]
[1748911092133,48.85777749,158.4,158.38,0.0455267]
[1748911092633,0.04042573,158.42,158.38,0.0455267]
[1748911093832,7.36860322,158.42,158.38,0.0455267]
[1748911094231,6.3093,158.41,158.38,0.0455267]
[1748911094537,7.36860322,158.42,158.38,0.0455267]
[1748911094538,7.32817749,158.4,158.38,0.0455267]
[1748911094742,6.3099,158.39,158.38,0.0455267]
[1748911095333,6.3111,158.36,158.33,6.3121]
[1748911095533,7.32817749,158.35,158.31,2.199]
[1748911096039,13.63997749,158.35,158.31,8.5117]
[1748911096433,13.68047982,158.35,158.31,8.55764309]
[1748911096640,13.68047982,158.35,158.31,2.24494309]
[1748911096641,0.04050233,158.35,158.31,2.24494309]
[1748911097137,0.04050233,158.35,158.32,6.3123]
[1748911098837,0.04050233,158.35,158.33,6.3122]
[1748911099231,0.04050233,158.35,158.32,6.3125]
[1748911100030,0.04050233,158.35,158.33,6.3122]
[1748911100235,0.04050233,158.35,158.31,2.24494309]
[1748911101143,0.04050233,158.35,158.34,6.3119]
[1748911101642,0.04050233,158.35,158.33,6.3121]
[1748911102242,0.04050233,158.35,158.32,6.3125]
[1748911102431,6.35200233,158.35,158.32,6.3125]
[1748911102836,6.35200233,158.35,158.33,6.3122]
[1748911102837,0.04050233,158.35,158.33,6.3122]
[1748911103444,0.04050233,158.35,158.31,0.04594309]
[1748911104341,10.9127288,158.35,158.31,0.04594309]
[1748911104731,6.3119,158.34,158.31,6.35864309]
[1748911105645,6.35210233,158.35,158.32,6.3126]
[1748911105841,0.04050233,158.35,158.31,0.04594309]
[1748911107446,0.04050233,158.35,158.33,6.312]
[1748911107644,0.04050233,158.35,158.31,0.04594309]
[1748911108945,0.04050233,158.35,158.34,6.3119]
[1748911110038,0.04050233,158.35,158.31,0.04594309]
[1748911117145,7.38036215,158.35,158.31,0.04594309]
[1748911119153,0.04050233,158.35,158.31,0.04594309]
[1748911120969,0.04050233,158.35,158.32,6.3125]
[1748911121270,0.04050233,158.35,158.31,0.04594309]
[1748911122061,7.33985982,158.4,158.38,6.3102]
[1748911122262,7.33985982,158.42,158.34,42.55985982]
[1748911122468,7.33985982,158.42,158.35,4.2412]
[1748911123160,0.04489863,158.4,158.37,0.0466914]
[1748911123466,0.04489863,158.4,158.39,6.3097]
[1748911124256,42.55985982,158.44,158.37,0.0466914]
[1748911124459,7.33985982,158.44,158.37,0.0466914]
[1748911124659,6.3077,158.45,158.42,6.3086]
[1748911124861,35.22,158.47,158.38,7.33985982]
[1748911125165,35.22,158.47,158.42,6.3084]
[1748911125166,0.04190029,158.44,158.42,6.3084]
[1748911125372,0.04190029,158.44,158.41,0.04789281]
[1748911125865,7.33985982,158.43,158.41,0.04789281]
[1748911126369,6.34990029,158.44,158.41,0.04789281]
[1748911126572,0.04190029,158.44,158.41,0.04789281]
[1748911127668,0.04190029,158.44,158.41,6.35669281]
[1748911128173,0.04190029,158.44,158.41,0.04789281]
[1748911129169,0.04190029,158.44,158.43,6.3083]
[1748911129376,7.33985982,158.49,158.42,2.1563]
[1748911129571,7.33985982,158.49,158.42,4.3886]
[1748911130076,13.64595982,158.49,158.42,11.72845982]
[1748911130375,0.04807254,158.47,158.44,0.04507988]
[1748911132277,0.04807254,158.47,158.46,6.3071]
[1748911132472,0.04807254,158.47,158.44,0.04507988]
[1748911133381,0.04807254,158.47,158.45,6.3072]
[1748911133782,0.04807254,158.47,158.44,0.04507988]
[1748911134974,0.04807254,158.47,158.44,6.35277988]
[1748911135176,0.04807254,158.47,158.44,0.04507988]
[1748911135373,0.04807254,158.47,158.44,7.3849397]
[1748911135782,0.04807254,158.47,158.46,6.3071]
[1748911136083,35.18,158.53,158.46,7.33985982]
[1748911136481,35.18,158.53,158.5,6.3055]
[1748911136982,35.22583558,158.53,158.5,0.04680596]
[1748911137775,0.04583558,158.53,158.5,0.04680596]
[1748911138188,545.12,158.59,158.5,42.56666578]
[1748911138479,13.64185982,158.59,158.54,6.3039]
[1748911138677,7.33985982,158.59,158.54,6.3039]
[1748911139281,0.04617586,158.58,158.55,0.04016239]
[1748911140387,6.303,158.57,158.55,0.04016239]
[1748911140583,0.04617586,158.58,158.55,0.04016239]
[1748911141178,6.34877586,158.58,158.55,0.04016239]
[1748911141385,0.04617586,158.58,158.55,0.04016239]
[1748911142985,0.04617586,158.58,158.56,6.3028]
[1748911143185,0.04617586,158.58,158.55,0.04016239]
[1748911143385,0.04617586,158.58,158.56,6.303]
[1748911143781,35.18,158.63,158.55,0.04016239]
[1748911143979,10.84089603,158.65,158.55,10.88105842]
[1748911144181,35.16,158.66,158.57,10.84089603]
[1748911144381,6.2996,158.65,158.58,4.3014]
[1748911144582,35.16,158.66,158.59,10.84089603]
[1748911144782,130.2955,158.71,158.61,0.04344023]
[1748911144783,46.00089603,158.69,158.61,0.04344023]
[1748911144985,6.2985,158.68,158.63,0.04260167]
[1748911145178,35.16,158.69,158.63,0.04260167]
[1748911145381,150.25535016,158.72,158.63,0.04260167]
[1748911145586,150.25535016,158.72,158.66,6.2989]
[1748911145782,150.25535016,158.72,158.67,0.04038781]
[1748911146087,6.2971,158.72,158.67,0.04038781]
[1748911146288,6.2971,158.72,158.67,6.33908781]
[1748911146684,6.2973,158.71,158.67,6.33908781]
[1748911146890,35.16,158.73,158.67,0.04038781]
[1748911147482,46.00089603,158.73,158.67,0.04038781]
[1748911147686,35.16,158.73,158.67,0.04038781]
[1748911147888,6.2972,158.71,158.67,0.04038781]
[1748911148187,35.16,158.73,158.67,6.33888781]
[1748911148394,35.16,158.73,158.67,0.04038781]
[1748911149088,544.86,158.75,158.67,13.02648384]
[1748911149281,45.98089603,158.76,158.67,13.02648384]
[1748911149688,6.2959,158.75,158.7,6.2973]
[1748911149984,6.2959,158.75,158.71,0.0452093]
[1748911150193,45.98089603,158.76,158.71,0.0452093]
[1748911150383,6.2956,158.75,158.71,6.3420093]
[1748911150590,39.0025,158.79,158.71,0.0452093]
[1748911151086,6.2956,158.75,158.71,6.3422093]
[1748911151391,39.0025,158.79,158.71,0.0452093]
[1748911151696,10.84089603,158.78,158.71,6.3422093]
[1748911151894,10.84089603,158.78,158.71,0.0452093]
[1748911153289,35.14,158.79,158.72,10.84089603]
[1748911153500,35.14,158.79,158.75,6.2952]
[1748911153696,6.2938,158.8,158.75,0.04619448]
[1748911154095,41.4331,158.82,158.77,6.2946]
[1748911154296,35.14,158.85,158.75,0.04619448]
[1748911154498,35.14,158.85,158.78,0.04034949]
[1748911155185,6.2927,158.83,158.78,6.33474949]
[1748911155389,35.14,158.85,158.78,6.33474949]
[1748911155687,6.2927,158.83,158.78,6.33474949]
[1748911156694,6.2921,158.84,158.79,6.2937]
[1748911157297,35.14,158.85,158.79,6.2937]
[1748911157890,35.14,158.85,158.8,6.2936]
[1748911158897,6.2923,158.84,158.79,6.2938]
[1748911159292,6.2923,158.84,158.78,35.16034949]
[1748911159490,6.2925,158.83,158.78,35.16034949]
[1748911159893,10.84089603,158.82,158.78,0.04034949]
[1748911160088,6.294,158.79,158.78,0.04034949]
[1748911160291,10.84089603,158.8,158.78,0.04034949]
[1748911160685,6.2939,158.8,158.78,0.04034949]
[1748911161093,10.84089603,158.82,158.78,0.04034949]
[1748911161300,6.294,158.79,158.78,0.04034949]
[1748911161597,10.84089603,158.8,158.69,35.1]
[1748911161799,6.2964,158.73,158.67,215.79976681]
[1748911162092,45.94089603,158.75,158.66,4.1267]
[1748911162301,41.3959,158.75,158.66,4.1267]
[1748911162598,0.0419126,158.72,158.69,0.04597981]
[1748911162799,0.04051264,158.72,158.7,6.2972]
[1748911163187,0.04051264,158.72,158.69,0.0453108]
[1748911163597,0.04051264,158.72,158.7,6.2975]
[1748911163797,0.04051264,158.72,158.69,0.0453108]
[1748911164193,0.04051264,158.72,158.7,6.2972]
[1748911164396,0.04051264,158.72,158.69,0.0453108]
[1748911164794,0.04051264,158.72,158.7,6.2972]
[1748911165104,0.04051264,158.72,158.69,0.0453108]
[1748911165992,0.04051264,158.72,158.71,6.2971]
[1748911168396,0.04051264,158.72,158.69,0.0453108]
[1748911169206,0.04051264,158.72,158.69,6.3432108]
[1748911170204,0.04051264,158.72,158.69,0.0453108]
[1748911170702,6.298,158.69,158.65,41.3793]
[1748911170896,6.298,158.69,158.65,6.2993]
[1748911171097,10.84089603,158.71,158.65,6.2993]
[1748911171293,6.2986,158.68,158.64,6.2998]
[1748911171498,6.34549305,158.68,158.64,0.04439731]
[1748911171801,0.04689305,158.68,158.64,10.88529334]
[1748911172197,0.04689305,158.68,158.67,6.2987]